bitfinex-derivatives/quotes_ETHF0:USTF0_20250616
["timestamp","ask_amount","ask_price","bid_price","bid_amount"]
[1750043683324,1.70165467,2569.9,2569.8,6.93043771]
[1750043684527,0.77817,2569.7,2569.6,9.4938]
[1750043684725,1.70171467,2569.7,2569.6,9.4938]
[1750043685629,0.77823,2569.5,2569.4,2.33600376]
[1750043685940,0.77823,2569.5,2569.4,0.00583771]
[1750043686234,1.70177467,2569.5,2569.4,0.00583771]
[1750043686429,2.94737467,2569.5,2569.4,0.00583771]
[1750043688329,0.92354467,2569.5,2569.4,0.78409771]
[1750043688732,0.00583771,2569.9,2569.8,0.77814]
[1750043688930,0.92874187,2569.9,2569.8,2.95723631]
[1750043689133,1.70685187,2569.9,2569.8,2.95723631]
[1750043689335,1.70685187,2569.9,2569.8,0.77814]
[1750043689532,1.70681902,2569.9,2569.8,0.77814]
[1750043690425,0.92870902,2569.9,2569.8,0.77814]
[1750043692335,1.70681902,2569.9,2569.8,0.77814]
[1750043694443,0.92870902,2569.9,2569.8,0.77814]
[1750043695436,1.70681902,2569.9,2569.8,0.77814]
[1750043696045,0.77814,2569.8,2569.7,3.2078]
[1750043696243,0.77817,2569.7,2569.6,1.3101]
[1750043696543,0.77817,2569.7,2569.6,2.08829]
[1750043696848,0.77817,2569.7,2569.6,1.3101]
[1750043699462,0.77817,2569.7,2569.6,2.0883]
[1750043700952,1.42696,2569.8,2569.7,0.77817]
[1750043701164,1.70149037,2569.8,2569.7,0.77817]
[1750043701354,0.77817,2569.7,2569.6,2.08828]
[1750043701662,0.77815,2569.8,2569.7,0.77816]
[1750043701848,0.00583771,2569.9,2569.8,0.77814]
[1750043702558,1.70713655,2569.9,2569.8,2.05714]
[1750043702759,0.92902655,2569.9,2569.8,42.85714]
[1750043703055,2.32981705,2570.4,2569.8,42.85714]
[1750043703056,3.2078,2570.5,2570.4,0.77796]
[1750043703260,0.77784,2570.8,2570.7,0.77786]
[1750043703470,0.77784,2570.8,2570.6,0.77788]
[1750043704255,0.77783,2570.9,2570.7,0.77787]
[1750043704758,0.77783,2570.9,2570.6,0.77788]
[1750043705162,0.77785,2570.8,2570.6,0.77788]
[1750043705362,0.77783,2570.9,2570.7,0.77787]
[1750043705558,0.00583771,2571.0,2570.6,2.17909631]
[1750043705860,0.00583771,2571.0,2570.8,2.95691631]
[1750043706058,0.00583771,2571.0,2570.9,0.77781]
[1750043707362,0.00583771,2571.0,2570.8,8.45709631]
[1750043707663,0.00583771,2571.0,2570.9,0.77781]
[1750043709361,0.00583771,2571.0,2570.8,6.278]
[1750043709362,0.00583771,2571.0,2570.8,7.05582]
[1750043710264,0.00583771,2571.0,2570.8,8.42372]
[1750043710564,0.00583771,2571.0,2570.9,0.77781]
[1750043711368,0.78361771,2571.0,2570.8,8.42372]
[1750043711569,0.77781,2570.9,2570.8,7.6459]
[1750043711760,0.78363771,2571.0,2570.8,8.42374]
[1750043712265,0.00583771,2571.0,2570.9,0.77781]
[1750043713969,0.00583771,2571.0,2570.8,8.42372]
[1750043714360,0.00583771,2571.0,2570.9,0.77781]
[1750043715670,0.00583771,2571.0,2570.9,2.95690631]
[1750043715974,0.00583771,2571.0,2570.9,4.30770631]
[1750043716660,0.00583771,2571.0,2570.9,2.79191]
[1750043720067,0.00583771,2571.0,2570.9,1.44111]
[1750043722571,0.00583771,2571.0,2570.9,3.62020631]
[1750043727167,0.00583771,2571.0,2570.9,1.44111]
[1750043731767,2.18493402,2571.0,2570.9,3.2078]
[1750043732069,2.18493402,2571.0,2570.7,0.00583771]
[1750043732070,0.77784,2570.8,2570.7,0.00583771]
[1750043732272,2.95693631,2570.8,2570.7,0.00583771]
[1750043732475,7.95693631,2570.8,2570.7,0.00583771]
[1750043732673,9.31603631,2570.8,2570.7,0.00583771]
[1750043736481,0.77781,2570.9,2570.7,0.78367771]
[1750043736872,0.00583771,2571.0,2570.9,0.77781]
[1750043737177,0.77781,2570.9,2570.8,0.6446]
[1750043737371,0.77781,2570.9,2570.7,7.05268771]
[1750043737681,2.66631,2570.9,2570.7,7.05268771]
[1750043737882,1.8885,2570.9,2570.8,0.77784]
[1750043738182,2.66631,2570.9,2570.7,7.05268771]
[1750043738573,0.00583771,2571.0,2570.9,0.77781]
[1750043738775,0.00583771,2571.0,2570.9,6.16470631]
[1750043738975,3.98544,2571.5,2571.3,0.77767]
[1750043739175,3.98544,2571.5,2571.2,0.7777]
[1750043739176,0.77766,2571.4,2571.2,0.7777]
[1750043739375,3.2078,2571.5,2571.2,0.7777]
[1750043739376,3.98545,2571.5,2571.2,0.7777]
[1750043739577,3.98545,2571.5,2571.3,0.77769]
[1750043741988,3.98543,2571.5,2571.3,0.77769]
[1750043742483,0.77766,2571.4,2571.2,0.7777]
[1750043742683,3.98544,2571.5,2571.3,0.77768]
[1750043743885,0.77764,2571.5,2571.3,0.77768]
[1750043744582,0.00583771,2571.7,2571.3,2.17909631]
[1750043744784,0.78341771,2571.7,2571.5,2.95669631]
[1750043744978,0.00583771,2571.7,2571.6,0.7776]
[1750043745786,0.00583771,2571.7,2571.6,1.4229]
[1750043747188,0.78340771,2571.7,2571.6,0.6453]
[1750043747389,0.00583771,2571.7,2571.6,1.4229]
[1750043747881,0.78340771,2571.7,2571.6,0.6453]
[1750043748683,0.77766,2571.4,2571.2,3.9855]
[1750043748882,2.18493402,2571.7,2571.2,3.9855]
[1750043748883,0.77769,2571.3,2571.2,3.2078]
[1750043750387,0.77772,2571.2,2571.1,6.268]
[1750043750579,0.77781,2570.9,2570.8,1.3536]
[1750043750780,0.77781,2570.9,2570.8,0.6754]
[1750043751187,0.77784,2570.8,2570.7,6.27283771]
[1750043751987,0.77784,2570.8,2570.7,0.00583771]
[1750043758182,0.77784,2570.8,2570.7,0.78370771]
[1750043758390,0.77784,2570.8,2570.7,0.00583771]
[1750043760889,2.95693631,2570.8,2570.7,0.00583771]
[1750043761096,6.16473631,2570.8,2570.7,0.00583771]
[1750043761391,0.77799,2570.3,2570.2,3.2078]
[1750043762693,0.77802,2570.2,2570.1,0.6227]
[1750043763089,0.77801,2570.3,2570.1,1.40075]
[1750043763392,0.6269,2570.5,2570.1,0.6227]
[1750043763594,1.8673,2570.5,2570.1,0.6227]
[1750043763788,0.77799,2570.3,2570.1,1.40073]
[1750043763992,0.77798,2570.4,2570.2,0.77802]
[1750043764199,0.77795,2570.5,2570.3,0.77799]
[1750043764497,0.77798,2570.4,2570.2,0.778]
[1750043764895,0.77799,2570.3,2570.1,2.75333]
[1750043765397,1.2404,2570.7,2570.1,1.9753]
[1750043765599,0.77795,2570.5,2570.3,0.77798]
[1750043765799,0.77802,2570.2,2570.1,0.6227]
[1750043768196,0.77801,2570.3,2570.1,0.6227]
[1750043768399,0.77801,2570.3,2570.1,1.40074]
[1750043768600,11.41342,2570.8,2570.3,0.77799]
[1750043768789,3.2078,2570.8,2570.3,2.17909631]
[1750043769096,0.77794,2570.5,2570.4,0.6391]
[1750043769500,4.4832,2570.8,2570.4,1.41706]
[1750043769501,0.77793,2570.6,2570.4,1.41706]
[1750043769702,0.77793,2570.5,2570.4,0.6391]
[1750043770301,0.77792,2570.6,2570.4,1.41706]
[1750043770601,4.4832,2570.8,2570.4,0.6391]
[1750043770803,0.77793,2570.5,2570.4,0.6391]
[1750043771302,4.4832,2570.8,2570.4,1.41703]
[1750043771303,0.7779,2570.6,2570.4,1.41703]
[1750043771906,0.77793,2570.5,2570.4,0.6391]
[1750043773305,0.77793,2570.5,2570.4,1.41706]
[1750043773508,0.77793,2570.5,2570.4,0.6391]
[1750043773797,0.77788,2570.7,2570.5,0.77791]
[1750043774004,0.77788,2570.7,2570.5,4.28480631]
[1750043774406,0.7779,2570.6,2570.5,3.50689631]
[1750043774699,0.7779,2570.6,2570.5,4.28482631]
[1750043774902,0.7779,2570.6,2570.5,3.50689631]
[1750043775098,0.7779,2570.6,2570.5,1.3278]
[1750043775903,0.7779,2570.6,2570.4,1.41704]
[1750043776098,0.77793,2570.5,2570.4,1.41704]
[1750043776293,0.77793,2570.5,2570.4,0.6391]
[1750043776498,0.77793,2570.5,2570.4,1.41706]
[1750043776998,0.77792,2570.6,2570.4,1.41706]
[1750043777398,5.38689631,2570.6,2570.1,6.8847]
[1750043777597,0.77801,2570.3,2570.1,8.34314]
[1750043778102,0.77802,2570.2,2570.1,8.34314]
[1750043778303,4.78459631,2570.8,2570.1,7.5651]
[1750043778506,0.77796,2570.4,2570.3,0.77798]
[1750043779001,0.77794,2570.5,2570.4,0.77795]
[1750043779199,0.77796,2570.4,2570.3,6.16486631]
[1750043779404,0.77796,2570.4,2570.3,7.41246631]
[1750043779904,3.8263,2570.9,2570.3,6.63449631]
[1750043780095,0.7779,2570.6,2570.5,2.95700631]
[1750043780295,3.2078,2570.9,2570.3,4.75892753]
[1750043780495,0.77802,2570.2,2570.1,1.3031]
[1750043780699,0.77801,2570.3,2570.2,0.77802]
[1750043780900,0.77801,2570.3,2570.1,8.34313]
[1750043781101,0.77802,2570.2,2570.1,8.34313]
[1750043781306,0.77802,2570.2,2570.1,7.5651]
[1750043783706,1.3215,2570.5,2570.0,4.76476524]
[1750043783906,0.77805,2570.1,2570.0,0.00583771]
[1750043794711,0.77805,2570.1,2570.0,0.78391771]
[1750043794918,0.77805,2570.1,2570.0,0.00583771]
[1750043798319,1.2375,2570.3,2570.0,0.00583771]
[1750043798624,0.00583771,2570.5,2570.0,0.00583771]
[1750043798917,0.77801,2570.3,2570.1,0.77804]
[1750043799125,0.77801,2570.3,2570.2,0.6571]
[1750043799317,0.77801,2570.3,2570.2,1.3178]
[1750043801818,0.77801,2570.3,2570.2,4.5256]
[1750043803523,0.77801,2570.3,2570.2,1.3178]
[1750043804925,0.77805,2570.1,2570.0,0.00583771]
[1750043805122,0.77805,2570.1,2570.0,0.64153771]
[1750043805424,0.77804,2570.2,2570.0,1.41961771]
[1750043805627,0.77804,2570.2,2570.1,0.77805]
[1750043805820,0.02053771,2570.5,2570.0,2.82153246]
[1750043806119,0.02053771,2570.5,2570.4,2.95795475]
[1750043806327,0.00583771,2570.5,2570.4,9.21395475]
[1750043807128,0.00583771,2570.5,2570.4,10.46755475]
[1750043808420,0.00583771,2570.5,2570.2,4.75892753]
[1750043808621,0.77797,2570.4,2570.3,6.256]
[1750043809025,0.77797,2570.4,2570.3,7.03399]
[1750043809421,0.00583771,2570.5,2570.4,0.77796]
[1750043809621,0.00583771,2570.5,2570.4,2.95795475]
[1750043809925,0.00583771,2570.5,2570.4,4.29125475]
[1750043810416,0.78376771,2570.5,2570.3,7.03397]
[1750043810931,0.77796,2570.4,2570.3,6.256]
[1750043812427,0.77796,2570.4,2570.3,7.03399]
[1750043814130,0.77796,2570.4,2570.3,6.256]
[1750043814630,0.77801,2570.3,2570.1,4.29185753]
[1750043814830,0.77799,2570.3,2570.2,6.255]
[1750043815333,0.77799,2570.3,2570.2,7.03302]
[1750043815837,0.77799,2570.3,2570.2,6.255]
[1750043816338,0.00583771,2570.5,2570.2,6.255]
[1750043816630,0.77796,2570.4,2570.2,7.033]
[1750043817531,0.77796,2570.4,2570.3,0.77799]
[1750043817731,0.00583771,2570.5,2570.4,0.77796]
[1750043818137,0.77797,2570.4,2570.2,8.43499475]
[1750043818331,0.78378771,2570.5,2570.3,0.77799]
[1750043818933,0.77796,2570.4,2570.3,0.77799]
[1750043819133,0.77799,2570.3,2570.2,7.033]
[1750043819630,1.27263771,2570.5,2570.2,6.255]
[1750043819829,0.78377771,2570.5,2570.4,0.77796]
[1750043820631,0.00583771,2570.5,2570.4,0.77796]
[1750043821029,0.00583771,2570.5,2570.4,2.95795475]
[1750043821627,0.00583771,2570.5,2570.4,4.32485475]
[1750043822631,0.77796,2570.4,2570.3,7.79912753]
[1750043822931,0.77796,2570.4,2570.3,7.02599]
[1750043823432,0.77796,2570.4,2570.3,6.248]
[1750043823633,0.77796,2570.4,2570.3,7.02599]
[1750043824028,0.77796,2570.4,2570.3,6.248]
[1750043824229,0.77796,2570.4,2570.3,7.02599]
[1750043825234,0.77796,2570.4,2570.3,6.248]
[1750043826428,0.00583771,2570.5,2570.4,0.77796]
[1750043826630,0.00583771,2570.5,2570.4,2.95795475]
[1750043827530,0.00583771,2570.5,2570.4,5.79788228]
[1750043827730,0.00583771,2570.5,2570.4,4.24675475]
[1750043828333,0.00583771,2570.5,2570.4,5.79852531]
[1750043828736,0.00583771,2570.5,2570.4,4.24675475]
[1750043828938,3.8794,2571.1,2570.4,5.41365475]
[1750043829236,0.77786,2570.8,2570.7,0.77786]
[1750043829443,0.77786,2570.8,2570.7,1.43536]
[1750043829843,0.77786,2570.8,2570.7,0.6575]
[1750043831443,0.77786,2570.8,2570.7,1.43537]
[1750043831644,0.77786,2570.8,2570.7,0.6575]
[1750043832347,0.77782,2570.9,2570.7,1.43537]
[1750043832749,0.77784,2570.8,2570.7,1.43537]
[1750043833245,0.00583771,2571.0,2570.7,0.6575]
[1750043833451,0.78361771,2571.0,2570.9,0.77781]
[1750043834349,0.78361771,2571.0,2570.7,47.7055]
[1750043834350,0.77781,2570.9,2570.8,0.77782]
[1750043834546,0.77781,2570.9,2570.7,47.7055]
[1750043834750,0.77784,2570.8,2570.7,40.8]
[1750043834943,0.7779,2570.6,2570.5,7.5958]
[1750043835140,0.7779,2570.6,2570.5,6.248]
[1750043835549,2.1225,2570.6,2570.5,6.248]
[1750043836455,0.77796,2570.4,2570.3,0.675]
[1750043836656,0.77799,2570.3,2570.2,11.00767926]
[1750043837549,0.77799,2570.3,2570.2,6.248]
[1750043837951,2.76849,2570.3,2570.2,6.248]
[1750043839259,0.77805,2570.1,2570.0,1.55771697]
[1750043839562,0.77805,2570.1,2570.0,0.00583771]
[1750043840059,2.06255,2570.1,2570.0,0.00583771]
[1750043844150,0.77805,2570.1,2570.0,0.00583771]
[1750043848862,0.77804,2570.2,2570.0,0.78390771]
[1750043849060,0.77804,2570.2,2570.1,0.6379]
[1750043851663,0.77805,2570.1,2570.0,0.00583771]
[1750043851957,5.94725,2570.1,2570.0,0.00583771]
[1750043853764,0.77817,2569.7,2569.6,3.8392]
[1750043854057,0.77817,2569.7,2569.6,1.275]
[1750043855356,0.77816,2569.8,2569.6,2.05318]
[1750043855561,0.77811,2569.9,2569.8,0.77813]
[1750043855761,0.77811,2569.9,2569.7,2.17999475]
[1750043855762,0.77811,2569.9,2569.7,2.95814475]
[1750043856265,0.77817,2569.7,2569.6,1.275]
[1750043857667,0.77817,2569.7,2569.6,2.0532]
[1750043857869,0.77817,2569.7,2569.6,1.275]
[1750043860366,2.17999475,2569.7,2569.4,0.00583771]
[1750043860566,0.77823,2569.5,2569.4,0.00583771]
[1750043861659,3.98603,2569.5,2569.4,0.00583771]
[1750043863563,0.77823,2569.5,2569.4,0.00583771]
[1750043863767,0.00583771,2569.7,2569.4,0.00583771]
[1750043864060,0.77823,2569.5,2569.4,0.00583771]
[1750043864667,3.98603,2569.5,2569.4,0.00583771]
[1750043865864,3.2078,2569.5,2569.4,0.00583771]
[1750043866063,3.2078,2569.5,2569.4,0.78409771]
[1750043866262,0.77812,2569.9,2569.4,28.93083771]
[1750043866473,0.77803,2570.2,2569.8,2.17999475]
[1750043866675,5.15272,2570.4,2569.9,8.7674]
[1750043866971,0.77803,2570.2,2570.0,0.77807]
[1750043867364,0.77803,2570.2,2570.0,2.12777]
[1750043867564,0.77805,2570.1,2570.0,1.3497]
[1750043867764,0.77805,2570.2,2570.0,2.12778]
[1750043868769,0.77799,2570.3,2570.0,1.3497]
[1750043869070,0.00583771,2570.4,2570.3,0.77799]
[1750043869269,0.00583771,2570.4,2570.3,7.01999]
[1750043869467,0.00583771,2570.4,2570.3,8.99799]
[1750043875772,0.78379771,2570.4,2570.3,8.99799]
[1750043876073,0.00583771,2570.4,2570.3,8.99799]
[1750043876372,0.00583771,2570.4,2570.3,49.79799]
[1750043877775,0.78379771,2570.4,2570.3,49.79799]
[1750043877971,0.78379771,2570.4,2570.3,49.02]
[1750043878172,0.00583771,2570.4,2570.3,49.02]
[1750043878675,0.00583771,2570.4,2570.3,49.79799]
[1750043879975,4.4459,2570.9,2570.6,0.77789]
[1750043879976,3.2078,2570.9,2570.6,0.77789]
[1750043880179,3.2078,2570.9,2570.7,1.3475]
[1750043880180,0.77785,2570.8,2570.7,1.3475]
[1750043881672,0.77783,2570.9,2570.7,2.12537]
[1750043881972,7.12895,2571.3,2570.7,2.12536]
[1750043882176,0.77782,2570.9,2570.7,1.35333771]
[1750043882376,0.77782,2570.9,2570.7,2.13118771]
[1750043882679,0.6228,2571.2,2570.7,2.13118771]
[1750043882680,0.77784,2570.8,2570.7,2.13118771]
[1750043884582,0.77784,2570.8,2570.7,1.35333771]
[1750043884777,0.77784,2570.8,2570.7,2.13120771]
[1750043885579,0.7778,2571.0,2570.8,0.77784]
[1750043885778,0.7778,2571.0,2570.7,1.35333771]
[1750043885978,0.77781,2570.9,2570.8,0.77782]
[1750043887181,0.7778,2571.0,2570.7,7.58633771]
[1750043887382,0.7778,2571.0,2570.9,0.77781]
[1750043887578,0.77776,2571.1,2571.0,0.77777]
[1750043888482,0.77778,2571.0,2570.9,0.77779]
[1750043889687,0.77777,2571.1,2570.9,0.77779]
[1750043889984,0.7778,2571.0,2570.9,0.77781]
[1750043890380,0.77777,2571.1,2570.9,0.77781]
[1750043890686,1.9728,2571.2,2570.9,0.77781]
[1750043890890,0.77777,2571.1,2570.9,0.77781]
[1750043891480,0.77777,2571.1,2571.0,0.77778]
[1750043891692,0.77778,2571.0,2570.9,0.77779]
[1750043891988,3.2078,2571.3,2571.2,0.77772]
[1750043892286,3.98549,2571.3,2571.2,7.01072]
[1750043892490,3.2078,2571.3,2571.2,7.01072]
[1750043892785,3.2078,2571.3,2571.2,8.34692]
[1750043893186,0.77762,2571.6,2571.5,0.77763]
[1750043893391,0.77758,2571.7,2571.4,2.17887163]
[1750043893781,0.77758,2571.7,2571.5,0.77763]
[1750043894088,0.77758,2571.7,2571.6,0.7776]
[1750043894280,0.77758,2571.7,2571.5,0.77761]
[1750043894682,0.77758,2571.7,2571.6,0.6351]
[1750043894879,3.2078,2572.2,2571.6,6.8671]
[1750043895187,3.2078,2572.2,2572.1,0.77745]
[1750043895485,3.2078,2572.2,2572.1,7.00945]
[1750043895680,3.98522,2572.2,2572.1,6.232]
[1750043895885,3.2078,2572.2,2572.1,7.00945]
[1750043896285,3.2078,2572.2,2572.1,7.64455]
[1750043899584,3.2078,2572.2,2572.1,6.8671]
[1750043899988,3.98522,2572.2,2572.1,6.8671]
[1750043900291,3.27517406,2572.2,2572.1,6.8671]
[1750043900482,4.05259406,2572.2,2572.1,6.8671]
[1750043900883,3.27517406,2572.2,2572.1,6.8671]
[1750043901284,4.05259406,2572.2,2572.1,6.8671]
[1750043901483,3.27517406,2572.2,2572.1,6.8671]
[1750043901686,4.05259406,2572.2,2572.1,6.8671]
[1750043902897,0.77747,2572.1,2571.9,0.7775]
[1750043903089,0.77747,2572.1,2572.0,6.23]
[1750043903291,4.05261406,2572.2,2572.0,7.00748]
[1750043903988,0.77745,2572.1,2572.0,7.00748]
[1750043904386,0.77745,2572.1,2572.0,6.23]
[1750043905091,0.77745,2572.1,2572.0,7.00748]
[1750043905687,0.77743,2572.2,2572.0,7.00748]
[1750043907790,0.77745,2572.1,2572.0,6.23]
[1750043908289,3.2078,2572.5,2572.4,0.77736]
[1750043909199,3.2078,2572.5,2572.4,0.6176]
[1750043909391,3.98513,2572.5,2572.4,1.39496]
[1750043909795,3.98513,2572.5,2572.4,0.6176]
[1750043912291,3.98513,2572.5,2572.4,1.39496]
[1750043912692,3.98513,2572.5,2572.4,0.6176]
[1750043913099,3.2078,2572.5,2572.4,1.39496]
[1750043913603,3.98513,2572.5,2572.4,1.39496]
[1750043913791,3.98513,2572.5,2572.4,0.6176]
[1750043914305,5.38667163,2572.5,2572.2,0.00583771]
[1750043914599,2.95626163,2572.3,2572.2,0.00583771]
[1750043915102,0.77745,2572.1,2572.0,6.23]
[1750043915304,0.7775,2572.0,2571.8,0.77752]
[1750043915502,0.77754,2571.8,2571.7,6.8805]
[1750043915796,0.77754,2571.8,2571.7,0.6575]
[1750043916003,0.77754,2571.8,2571.7,6.223]
[1750043916206,0.77752,2571.9,2571.7,7.00056]
[1750043916504,2.01272,2571.9,2571.7,7.00056]
[1750043917012,0.77754,2571.8,2571.7,6.223]
[1750043917306,1.2352,2571.9,2571.8,0.77754]
[1750043917900,1.2352,2571.9,2571.7,6.223]
[1750043918098,0.77757,2571.7,2571.6,3.8892]
[1750043918401,0.77757,2571.7,2571.6,3.2078]
[1750043919300,0.7776,2571.6,2571.5,0.00583771]
[1750043919496,2.1135,2571.6,2571.5,0.00583771]
[1750043923910,0.77771,2571.3,2571.1,7.00174]
[1750043924601,4.66625,2571.5,2571.2,0.77772]
[1750043924798,0.77766,2571.4,2571.2,0.77772]
[1750043925104,0.77766,2571.4,2571.2,0.7777]
[1750043926710,3.8886,2571.5,2571.3,0.77769]
[1750043926907,4.66624,2571.5,2571.3,0.77767]
[1750043927104,0.77766,2571.4,2571.3,0.77767]
[1750043927305,0.77766,2571.4,2571.2,0.7777]
[1750043927499,0.77766,2571.4,2571.3,0.77769]
[1750043927700,0.77766,2571.4,2571.2,0.7777]
[1750043927997,3.8886,2571.5,2571.2,0.7777]
[1750043928510,0.77768,2571.4,2571.2,0.7777]
[1750043929706,0.77769,2571.3,2571.2,0.7777]
[1750043929901,0.84505406,2571.4,2571.2,0.7777]
[1750043930101,0.77769,2571.3,2571.1,10.48193934]
[1750043931112,0.77769,2571.3,2571.1,7.00756771]
[1750043931607,0.77772,2571.2,2571.1,6.22983771]
[1750043932305,0.77772,2571.2,2571.1,0.00583771]
[1750043932501,3.98552,2571.2,2571.1,0.00583771]
[1750043932704,5.27912,2571.2,2571.1,0.00583771]
[1750043933917,4.5014,2571.2,2570.7,27.4215]
[1750043934111,0.7779,2570.6,2570.5,0.662]
[1750043934412,0.7779,2570.6,2570.3,9.4328]
[1750043934413,0.77796,2570.4,2570.3,9.4328]
[1750043935412,0.77795,2570.5,2570.3,9.4328]
[1750043935716,0.77795,2570.5,2570.1,0.00583771]
[1750043935717,0.77802,2570.2,2570.1,0.00583771]
[1750043938105,3.98582,2570.2,2570.1,0.00583771]
[1750043939407,6.16469163,2570.2,2569.7,1.2986]
[1750043939612,0.77815,2569.8,2569.7,1.2986]
[1750043939912,0.77827,2569.4,2569.3,9.4288]
[1750043940117,0.77827,2569.4,2569.3,6.221]
[1750043940709,0.77826,2569.5,2569.3,6.99928]
[1750043941512,3.2078,2569.9,2569.8,0.77814]
[1750043941702,3.2078,2570.2,2569.7,4.36347346]
[1750043941910,3.2078,2570.2,2569.8,2.05764]
[1750043942109,3.2078,2570.2,2569.8,3.34674]
[1750043942309,5.15291,2570.2,2569.8,1.2795]
[1750043942520,5.15291,2570.2,2569.5,6.222]
[1750043942521,1.2533,2570.1,2569.5,6.222]
[1750043942715,1.2533,2570.1,2569.6,0.77819]
[1750043943117,0.77816,2569.8,2569.6,0.77819]
[1750043943616,0.77815,2569.8,2569.6,0.77819]
[1750043944117,0.77814,2569.9,2569.6,0.77819]
[1750043944312,0.77809,2570.0,2569.6,3.2078]
[1750043944521,0.77809,2570.0,2569.5,6.222]
[1750043944522,0.77809,2570.0,2569.8,0.77813]
[1750043944715,0.77809,2570.0,2569.9,1.31]
[1750043946821,0.77808,2570.1,2569.9,2.08811]
[1750043947025,0.77808,2570.0,2569.9,1.31]
[1750043947722,0.77808,2570.0,2569.4,6.222]
[1750043947723,0.77825,2569.5,2569.4,6.222]
[1750043947918,0.77827,2569.4,2569.3,0.6354]
[1750043948625,3.857,2569.9,2569.3,3.8432]
[1750043948823,0.77819,2569.7,2569.5,0.77823]
[1750043949121,0.77819,2569.7,2569.4,2.08935]
[1750043949326,3.2078,2569.8,2569.3,0.6354]
[1750043949517,0.77827,2569.4,2569.3,0.6354]
[1750043949718,0.77827,2569.4,2569.3,6.8574]
[1750043956116,3.98606,2569.5,2569.3,7.6357]
[1750043956426,0.77827,2569.4,2569.3,6.8574]
[1750043957318,3.2078,2569.5,2569.3,6.8574]
[1750043957518,3.98604,2569.5,2569.4,0.77827]
[1750043957717,3.98604,2569.5,2569.4,2.10667]
[1750043957920,3.2078,2569.5,2569.4,2.10667]
[1750043958321,3.98604,2569.5,2569.4,1.3284]
[1750043958522,0.77827,2569.4,2569.3,6.8574]
[1750043958926,0.77827,2569.4,2569.3,7.6357]
[1750043959222,0.77827,2569.4,2569.3,6.8574]
[1750043960029,0.77827,2569.4,2569.3,7.6357]
[1750043962316,0.77827,2569.4,2569.3,6.8574]
[1750043962522,0.77827,2569.4,2569.3,7.6357]
[1750043962723,0.77827,2569.4,2569.3,6.8574]
[1750043964329,0.77827,2569.4,2569.3,7.6357]
[1750043964833,0.77827,2569.4,2569.3,6.8574]
[1750043965024,0.77827,2569.4,2569.3,7.6357]
[1750043965229,3.2078,2569.9,2569.3,12.246843]
[1750043965534,3.2078,2569.9,2569.5,2.959873]
[1750043965535,0.77822,2569.6,2569.5,2.959873]
[1750043966224,3.2078,2569.9,2569.5,2.181643]
[1750043966424,3.2078,2569.9,2569.7,2.181643]
[1750043966625,3.98591,2569.9,2569.8,0.6554]
[1750043966932,3.2078,2569.9,2569.8,1.43354]
[1750043967124,3.98591,2569.9,2569.8,1.43354]
[1750043967924,0.77811,2569.9,2569.8,1.43354]
[1750043968735,0.77811,2569.9,2569.8,0.6554]
[1750043969436,0.77811,2569.9,2569.8,1.43354]
[1750043970231,0.77811,2570.0,2569.8,1.43353]
[1750043970427,0.77807,2570.1,2569.8,0.6554]
[1750043970633,0.77807,2570.1,2569.9,0.7781]
[1750043970833,0.77808,2570.0,2569.9,0.7781]
[1750043971032,4.27476705,2570.4,2569.8,2.73573]
[1750043971234,0.77811,2570.0,2569.8,2.73573]
[1750043972431,0.77811,2570.0,2569.8,1.9576]
[1750043972633,0.77811,2570.0,2569.8,2.73573]
[1750043974839,0.77811,2569.9,2569.8,1.9576]
[1750043975342,0.7781,2570.0,2569.8,2.73574]
[1750043975640,0.77811,2569.9,2569.8,0.6554]
[1750043975839,0.77821,2569.6,2569.5,1.55187926]
[1750043976027,0.77821,2569.6,2569.5,6.219]
[1750043976930,3.98601,2569.6,2569.5,6.219]
[1750043977938,3.2078,2569.6,2569.2,6.219]
[1750043978137,0.7783,2569.3,2569.2,6.219]
[1750043981547,1.9435,2569.5,2569.2,6.219]
[1750043981735,0.77825,2569.5,2569.3,0.77828]
[1750043981939,0.77827,2569.4,2569.2,6.99731]
[1750043982334,0.77826,2569.5,2569.3,0.7783]
[1750043982834,0.77826,2569.5,2569.4,0.77827]
[1750043983039,0.77826,2569.5,2569.3,0.77827]
[1750043983646,3.2078,2569.6,2569.2,6.219]
[1750043983847,0.77829,2569.4,2569.2,6.99733]
[1750043984049,3.2078,2569.6,2569.3,0.7783]
[1750043984252,0.77826,2569.5,2569.3,0.7783]
[1750043984947,3.98603,2569.6,2569.4,0.77827]
[1750043985139,0.77824,2569.5,2569.4,0.77827]
[1750043985550,0.77824,2569.5,2569.2,7.5614]
[1750043985551,0.77824,2569.5,2569.3,0.77827]
[1750043985742,0.77827,2569.4,2569.3,0.77827]
[1750043985942,0.7783,2569.3,2569.2,6.99731]
[1750043986143,0.7783,2569.3,2569.1,7.65026771]
[1750043986342,0.7783,2569.3,2569.2,0.77833]
[1750043987451,3.2078,2569.5,2569.1,6.87193771]
[1750043987452,0.77825,2569.5,2569.4,0.77825]
[1750043987844,3.8718,2569.8,2569.5,0.77823]
[1750043988038,3.8718,2569.8,2569.2,3.21839]
[1750043988243,3.2078,2569.8,2569.7,0.77817]
[1750043988445,0.77806,2570.1,2569.7,4.36114243]
[1750043988642,0.7781,2570.0,2569.8,0.6675]
[1750043988951,0.7781,2570.0,2569.9,2.18030104]
[1750043989361,0.77807,2570.1,2569.9,2.18030104]
[1750043989650,0.77808,2570.0,2569.9,2.18030104]
[1750043990044,0.77807,2570.1,2569.9,2.95841104]
[1750043991041,0.77807,2570.1,2570.0,0.6737]
[1750043991353,0.77805,2570.2,2570.0,1.45178]
[1750043992059,0.77805,2570.1,2570.0,0.6737]